Cogmind - Beta 12 @@@ ROGUE MODE // 2024.02.15 @ 00:40:57 Player: dankcaster889 Result: Destroyed by G-34 Mercenary with Small Laser Performance ------------- Evolutions (1) 500 Regions Visited (2) 400 Robots Destroyed (27) 135 Value Destroyed (835) 835 Prototype IDs (2) 40 Alien Tech Used (0) 0 Bonus (0) 0 TOTAL SCORE: 1910 Bonus ------- None Cogmind --------- Core Integrity 0/400 Matter 230/300 Energy 100/100 System Corruption 4% Temperature Cool (6) Movement Core (700) Ox13 Location -9/Materials Parts ------- > --- POWER (2) -------- (None) > --- PROPULSION (2) --- (None) > --- UTILITY (3) ------ High-capacity Storage Unit > --- WEAPON (2) ------- (None) > --- INVENTORY (20) --- Small Storage Unit Medium Matter Pod (0) Terrain Scanner Field Recycling Unit (0) Improved Light Cannon Peak State ------------ > --- POWER ------------ Ion Engine Reinforced Ion Engine > --- PROPULSION ------- Light Treads Light Treads > --- UTILITY ---------- High-capacity Storage Unit Terrain Scanner Field Recycling Unit > --- WEAPON ----------- Particle Gun Improved Light Cannon > --- INVENTORY -------- Small Storage Unit EM Pulse Gun Small Laser Small Laser [Rating: 13] Favorites ----------- Power Light Ion Engine Engine Light Ion Engine Propulsion Aluminum Leg Treads Light Treads Leg Aluminum Leg Utility High-capacity Storage Unit Device Terrain Scanner Storage High-capacity Storage Unit Protection Backup Plating I Weapon Beam Cannon Energy Gun Small Laser Energy Cannon Beam Cannon Ballistic Gun Assault Rifle Ballistic Cannon Improved Light Cannon Build | -11 -10 -9 ------- Run | Jun Mat Mat Slots Evolved 2 | . . 2 Power 1 | . . 1 Propulsion . | . . . Utility 1 | . . 1 Weapon . | . . . Parts Attached 35 | 6 11 18 Power 6 | 1 2 3 Engine 6 | 1 2 3 Core . | . . . Reactor . | . . . Propulsion 7 | 2 1 4 Treads 2 | . . 2 Leg 5 | 2 1 2 Wheel . | . . . Hover . | . . . Flight . | . . . Utility 8 | 1 2 5 Device 5 | . 1 4 Storage 3 | 1 1 1 Processor . | . . . Hackware . | . . . Protection . | . . . Artifact . | . . . Weapon 14 | 2 6 6 Energy Gun 9 | 1 3 5 Energy Cannon 2 | . 2 . Ballistic Gun 2 | 1 1 . Ballistic Cannon 1 | . . 1 Launcher . | . . . Special Weapon . | . . . Impact Weapon . | . . . Slashing Weapon . | . . . Piercing Weapon . | . . . Special Melee Weapon . | . . . Unidentified Prototypes . | . . . Parts Lost 17 | . 2 15 Power 4 | . . 4 Propulsion 3 | . . 3 Utility 3 | . 1 2 Weapon 7 | . 1 6 Highest Loss Streak 8 | . 1 8 To Critical Strikes . | . . . Average Slot Usage (%) 83 | . 94 76 Engine 13 | . 14 13 Treads 3 | . . 6 Leg 19 | . 28 13 Device 6 | . 1 9 Storage 12 | . 14 11 Protection 5 | . 7 3 Energy Gun 6 | . 8 4 Energy Cannon 7 | . 8 6 Ballistic Gun 5 | . 9 3 Ballistic Cannon 1 | . . 2 Naked Turns . | . . . Heaviest Build 68 | 11 52 68 Greatest Support 40 | 20 20 40 Greatest Overweight (x) 17 | . 2 17 Average Overweight (x) 1 | . 1 2 Largest Inventory Capacity 20 | 8 20 20 Average Capacity 17 | 6 15 20 Most Carried 9 | 3 9 8 Average Carried 5 | 1 5 5 Final Capacity 20 | 8 20 20 Final Carried 8 | 3 8 5 Class Distribution -------------------- 97% | Mutant Dominant Class ---------------- Mutant | -10/Materials Mutant | -9/Materials Resources | -11 -10 -9 ----------- Run | Jun Mat Mat Matter Collected 625 | 46 291 288 Remotely . | . . . Salvage Created 1033 | . 312 721 Parts 48 | . 14 34 Haulers Intercepted . | . . . Recyclers Shooed 6 | . 4 2 Parts Field Recycled . | . . . Retrieved Matter . | . . . Parts Self-Destructed . | . . . Prevented . | . . . Kills | -11 -10 -9 ------- Run | Jun Mat Mat Combat Hostiles Destroyed 22 | . 5 17 Guns 10 | . 5 5 Cannons 11 | . . 11 Classes Destroyed 6 | . 3 3 Worker 3 | . 1 2 Watcher 2 | . 2 . Grunt 19 | . 5 14 Brawler 1 | . . 1 Duelist 1 | . . 1 Sentry 1 | . . 1 Best Kill Streak 5 | . 4 5 Combat Bots Only 5 | . 2 5 Max Kills in Single Turn 1 | . 1 1 Gunslinging . | . . . Exploded . | . . . Melee . | . . . Uniques/NPCs Destroyed . | . . . Combat | -11 -10 -9 -------- Run | Jun Mat Mat Damage Taken 2427 | . 526 1901 Core 515 | . 115 400 Absorbed by Shields . | . . . Core Remaining (%) 77 | 100 54 . Volleys Fired 162 | . 57 105 Largest 2 | . 2 1 Hottest 65 | . 60 65 Shots Fired 173 | . 68 105 Gun 122 | . 67 55 Cannon 51 | . 1 50 Launcher . | . . . Special . | . . . Kinetic 47 | . 44 3 Thermal 126 | . 24 102 Explosive . | . . . Electromagnetic . | . . . Robot Hit Streak 10 | . 5 10 Robot Miss Streak 3 | . 3 3 Penetration Max . | . . . Secondary Targets 1 | . 1 . Max Gunslinging Chain 1 | . 1 . Shots Hit Robots 97 | . 37 60 Core Hits 45 | . 18 27 Critical Kills . | . . . Critical Parts Destroyed . | . . . Critical Strikes 1 | . . 1 Burn 1 | . . 1 Melee Attacks . | . . . Impact . | . . . Slashing . | . . . Piercing . | . . . Sneak Attacks . | . . . Combat Hostiles . | . . . Follow-up Attacks . | . . . Damage Inflicted 1593 | . 510 1083 Guns 1030 | . 494 536 Cannons 535 | . . 535 Explosions . | . . . Melee . | . . . Ramming 28 | . 16 12 Kinetic 384 | . 341 43 Thermal 1181 | . 153 1028 Explosive . | . . . Electromagnetic . | . . . Impact . | . . . Slashing . | . . . Piercing . | . . . Highest Corruption 4 | . . 4 Average Corruption 4 | . . 4 Corruption Purged . | . . . Corruption Blocked . | . . . Effects 18 | . . 18 Message Errors 3 | . . 3 Matter Fused 6 | . . 6 Heat Flow Errors 3 | . . 3 Energy Discharges 3 | . . 3 Data Loss (minor) 2 | . . 2 Alerts 1 | . . 1 Overload Shots . | . . . Overflow Damage 5 | . . 5 Projectiles 5 | . . 5 Explosions . | . . . Melee . | . . . Knockbacks . | . . . Impact . | . . . Kinetic . | . . . Secondary . | . . . Self-Inflicted Damage . | . . . Shots . | . . . Rammed 1 | . . 1 Targets Rammed 8 | . 6 2 Kicked 7 | . 6 1 Crushed . | . . . Highest Temperature 585 | . 54 585 Average Temperature 183 | . 26 204 Received Heat Transfer 1197 | . 285 912 Effects 12 | . . 12 Shutdowns 3 | . . 3 Energy Bleed 2 | . . 2 Matter Decay 1 | . . 1 Short Circuit 3 | . . 3 Damage (major) 3 | . . 3 Siege Activations . | . . . Robots Corrupted . | . . . Combat Hostiles . | . . . Parts Fried . | . . . Impact Corruptions . | . . . Robots Melted 1 | . . 1 Combat Hostiles 1 | . . 1 Parts Melted 6 | . . 6 Heat Transferred 2749 | . 350 2399 Parts Sabotaged . | . . . Parts Stolen . | . . . Parts Stripped . | . . . Power Chain Reactions . | . . . Missiles Intercepted . | . . . Alert | -11 -10 -9 ------- Run | Jun Mat Mat Peak Influence 196 | . 151 196 Initial . | . . . Average 68 | . 61 78 Maximum Alert Level . | . . . Low Security (%) 100 | 100 100 100 Level 1 . | . . . Level 2 . | . . . Level 3 . | . . . Level 4 . | . . . Level 5 . | . . . High Security . | . . . Max Security . | . . . Squads Dispatched 4 | . 1 3 Investigation 1 | . . 1 Extermination . | . . . Reinforcement 3 | . 1 2 Assault . | . . . Garrison . | . . . Intercept . | . . . Searches Triggered . | . . . Construction Impeded . | . . . Haulers Reinforced . | . . . Active Scanning Responses . | . . . Cargo Convoy Interrupts . | . . . Stealth | -11 -10 -9 --------- Run | Jun Mat Mat Distress Signals . | . . . Communications Jammed . | . . . Distress Signals . | . . . Times Spotted 36 | . 13 23 Peak Tracking Total 5 | . 4 5 Tactical Retreats . | . . . Traps | -11 -10 -9 ------- Run | Jun Mat Mat Traps Triggered 1 | . 1 . Indirectly . | . . . Trap Hack Attempts . | . . . Triggered . | . . . Disarmed . | . . . Reprogrammed . | . . . Reused . | . . . Traps Extracted . | . . . Installed . | . . . Triggered . | . . . Machines | -11 -10 -9 ---------- Run | Jun Mat Mat Machines Disabled . | . . . Max in Single Turn . | . . . Machines Repaired . | . . . Machines Sabotaged . | . . . Overloaded Fab Kills . | . . . Hacking | -11 -10 -9 --------- Run | Jun Mat Mat Machines Accessed 7 | . 3 4 Terminals 3 | . 1 2 Fabricators . | . . . Repair Stations 1 | . 1 . Recycling Units 1 | . 1 . Scanalyzers 2 | . . 2 Garrison Access . | . . . Total Hacks 22 | . 6 16 Successful 15 | . 3 12 Failed 7 | . 3 4 Catastrophic . | . . . Database Lockouts . | . . . Manual . | . . . Terminals 9 | . 1 8 Fabricators . | . . . Repair Stations 4 | . 4 . Recycling Units 1 | . 1 . Scanalyzers 8 | . . 8 Garrison Access . | . . . Terminal Hacks 5 | . . 5 Prototype ID Bank 1 | . . 1 Repair Station Index 1 | . . 1 Locate Traps 1 | . . 1 Dispatch Records 1 | . . 1 Hauler Manifests 1 | . . 1 Fabricator Hacks . | . . . Repair Station Hacks 2 | . 2 . Scan Component 1 | . 1 . Refit 1 | . 1 . Recycling Unit Hacks 1 | . 1 . Retrieve Components 1 | . 1 . Scanalyzer 7 | . . 7 Insert Component 3 | . . 3 Analyze 4 | . . 4 Garrison Access Hacks . | . . . Unauthorized Hacks . | . . . Terminals . | . . . Fabricators . | . . . Repair Stations . | . . . Recycling Units . | . . . Scanalyzers . | . . . Garrison Access . | . . . Data Cores Recovered . | . . . Used . | . . . Hacking Detections 5 | . 2 3 Full Trace Events 2 | . 1 1 Feedback Events . | . . . Feedback Blocked . | . . . Robot Schematics Acquired . | . . . Robots Built . | . . . Authchips . | . . . Time . | . . . Total Robot Build Rating . | . . . Part Schematics Acquired 3 | . . 3 Parts Built . | . . . Authchips . | . . . Time . | . . . Total Part Build Rating . | . . . Parts Repaired . | . . . Time . | . . . Parts Recycled . | . . . Recycled Matter . | . . . Retrieved Matter . | . . . Retrieved Components 9 | . 9 . Parts Scanalyzed 3 | . . 3 Part Schematics Acquired 3 | . . 3 Parts Damaged . | . . . Bothacking | -11 -10 -9 ------------ Run | Jun Mat Mat Used RIF Installer . | . . . Robots Hacked . | . . . Non-combat . | . . . Combat . | . . . Robot Hacks Applied . | . . . Relay Couplers Released . | . . . Fabnet Peak Effective % . | . . . Robots Rewired . | . . . Allies Hacked . | . . . Hacks Repelled . | . . . Allies | -11 -10 -9 -------- Run | Jun Mat Mat Total Allies . | . . . Largest Group . | . . . Highest-Rated Group . | . . . Highest-Rated Ally . | . . . Total Orders . | . . . Ally Attacks . | . . . Total Damage . | . . . Kills . | . . . Allies Corrupted . | . . . Allies Melted . | . . . Intel | -11 -10 -9 ------- Run | Jun Mat Mat Robot Analysis Total . | . . . Derelict Logs Recovered . | . . . Drone Launches . | . . . Drone Recoveries . | . . . Exploration | -11 -10 -9 ------------- Run | Jun Mat Mat Turns Passed 1683 | 64 662 957 Spaces Moved 529 | 43 233 253 Core 5 | 2 . 3 Treads 83 | . . 83 Legs 441 | 41 233 167 Wheels . | . . . Hover . | . . . Flight . | . . . Fastest Speed 50 | 50 120 240 Average Speed 234 | 116 210 276 Slowest Speed 900 | 120 260 900 Overloaded Moves . | . . . Propulsion Burnouts . | . . . Robots Hopped . | . . . Cave-ins Triggered . | . . . Exploration Rate (%) 20 | 4 33 23 Regions Visited 2 Branch Regions . Pre-discovered Areas . | . . . Known Exits Taken . | . . . Unknown Exits Taken 2 | 1 1 . Scrap Searched . | . . . Spaces Dug . | . . . Terrain Destroyed . | . . . Melee . | . . . Projectile . | . . . AOE . | . . . Terrain Rammed . | . . . Walls Destroyed . | . . . Machines Disabled . | . . . Actions | -11 -10 -9 --------- Run | Jun Mat Mat Total 795 | 57 333 405 Wait 20 | . 7 13 Move 527 | 42 232 253 Hop . | . . . Pick Up 31 | 9 13 9 Fast Attach . | . . . Attach 20 | 6 3 11 Detach 3 | . 1 2 Swap 15 | . 8 7 Drop 9 | . 6 3 Fire 162 | . 57 105 Melee . | . . . Ram . | . . . Kick 7 | . 6 1 Crush 1 | . . 1 Escape Stasis . | . . . Rewire . | . . . Trap . | . . . Miscellaneous . | . . . Route ------- -11/Junkyard -10/Materials (discovered 2 exits: *Mat x2) -9/Materials (discovered 1 exit: [*Min]) History --------- Turn | Location | Event 4 | -11/Junkyard | Discovered new exit (range 16) 65 | -11/Junkyard | Entered Materials 249 | -10/Materials | Discovered new exit (range 15) 355 | -10/Materials | Build established: Mutant 447 | -10/Materials | Discovered new exit (range 3) 727 | -10/Materials | Entered another Materials area 727 | -9/Materials | Evolved 2 slots: Power x1, Utility x1 1063 | -9/Materials | Lost 3 parts (2u1w) 1558 | -9/Materials | Discovered new exit (range 12) 1632 | -9/Materials | Core integrity fell below 50% 1667 | -9/Materials | Core integrity fell below 20% 1684 | -9/Materials | Destroyed by G-34 Mercenary with Small Laser Last Messages --------------- 01637_ K-01 Serf collects debris. 01637_ Broken Particle Gun destroyed. 01637_ K-01 Serf collects debris. 01641_ M-13 Machinist repairs G-47 Trooper. 01644_ Broken Rnf. Ion Engine destroyed. 01645_ K-01 Serf collects debris. 01648_ Sml. Laser destroyed. 01655_ System corrupted: Energy discharge (-20). 01658_ Aluminum Leg melted. 01658_ Imp. Heat Sink melted. 01658_ G-47 Trooper destroyed. 01658_ K-01 Serf collects debris. 01664_ K-01 Serf destroyed. 01664_ K-01 Serf collects debris. 01672_ Sml. Laser destroyed. 01674_ K-01 Serf collects debris. 01675_ System corrupted: Matter fused (-10). 01677_ K-01 Serf collects debris. 01680_ EM Pulse Gun destroyed. 01682_ K-01 Serf collects debris. Map ----- +----------------------------------------------------+ | ?????# # """ ##?????????????????????????????? | | ??#??# %# """ #??#???????????????????????????? | | ###### # """ #?#????????????????????????????? | | ###### # #?#????????????????????????????? | | # #####+#####??? ?????????????????????????? | | # % # % #??????"??????????????????????? | | "" +=%=+ "T" #?????????????????????????????? | | """ #!%%# """ #????? ??????????????????????? | | S" #*=*# ! #????!!! ?????????????????????? | | #%=%###########??? !!! ?????????????????????? | | ######[ ############# !!! ?????????????????????? | | # % ????????????????????? | | ^# ????????????????????? | | ![! + ???????????????????? | | ![ # ???????????????????? | | ! # #### ???????????????????? | | # #??# ####### #??????????????????????? | | #######+##### ##????# k#??????????????????????? | | ??#! ## ##????#^ ^#??????????????????????? | | ??# """" ## #?????#^ #??????????????????????? | | ??# """" ## #????## % ####???????????????????? | | ??# """" ## #????# u ""#???????????????????? | | ??# ## #????# % % "#???????????????????? | | ??# """ ## #????# g% |"#???????????????????? | | ??# """ ## #????# <%%""#???????????????????? | | ??# ???" ## #????# @ k"#???????????????????? | | ??????? ## #????# "#???????????????????? | | ????#??###### #????# k"""#???????????????????? | | ??????????### #????## ####???????????????????? | | ??????????? # #?????# #??????????????????????? | | ????????????+ + ??# #??????????????????????? | | ??????????? # # ## #??????????????????????? | | ??????????### ####### ##?????????????????????? | | ???????????# ##### #?????????????????????? | | ???# ### #?????????????????????? | | ?? T T #?????????????????????? | | ???# ### #?????????????????????? | | ???# ?????# ##### #?????????????????????? | | ???????????#######???## ##?????????????????????? | | ??????????????????????# #??????????????????????? | | ??????????????????????+ #??????????????????????? | | ??????????????????????# #??????????????????????? | | ??????????????????????# #??????????????????????? | | ??????????????????????##+##??????????????????????? | | ?????????????????????????????????????????????????? | | ?????????????????????????????????????????????????? | | ?????????????????????????????????????????????????? | | ?????????????????????????????????????????????????? | | ?????????????????????????????????????????????????? | | ?????????????????????????????????????????????????? | +----------------------------------------------------+ Best States ------------- Heat Dissipation 38 Energy Generation 17 Energy Capacity 415 Matter Stores 300 Matter Capacity 300 Sight Range 16 Terrain Scan Range 14 Terrain Scan Density 10 Armor Coverage 80 Evasion (%) 55 Recoil Reduction 2 Item Schematics ----------------- EM Pulse Gun | -9/Materials | Scanalyzed Aluminum Leg | -9/Materials | Scanalyzed Sml. Storage Unit | -9/Materials | Scanalyzed Robot Schematics ------------------ None Fabricated ------------ Nothing Alien Tech Used ----------------- None Achievements -------------- It's Just You Challenges ------------ None Game ------ Seed NetworkMyomerBox Manual? 0 Play Time 00:22:38 Cumulative 4.6 hours Start 2024.02.15 @ 00:19:48 End 2024.02.15 @ 00:40:57 Sessions 1 Manual Loads 0 Difficulty Rogue Special Mode None Game No. 21 Rogue 21 Adventurer 0 Explorer 0 Win Type - Total 0 Types 0/0/0/0/0/0/0/0/0 Lore% 12 Gallery% 10 Achievement% 12 Wizard Run 0 Options --------- ASCII 0 Keyboard 0 Movement Arrows Keybinds 0 Fullscreen 1 Font 12/Terminus Map View 83x54 Tactical HUD 1 Map Filters NONE Filters NONE Steam 1 RUN: 3312d3e2-2c71-4b07-a75b-c066af241c41